[Event "Open Cappelle-la-Grande"]
[Date "2025.02.19"]
[White "Duboue, Peio"]
[Black "Dessyn, Timothee"]
[WhiteElo "2440"]
[BlackElo "2283"]
[Round "7.7.12"]
[Result "1-0"]
[TimeControl "40/5400+30:1800+30"]

1. d4 {[%clk 1:30:57]} 1... Nf6 {[%clk 1:30:55]} 2. g3 {[%clk 1:31:16]} 2... d5
{[%clk 1:30:58]} 3. Bg2 {[%clk 1:31:37]} 3... e6 {[%clk 1:31:22]} 4. Nf3 {[%clk
1:31:51]} 4... b5 {[%clk 1:31:47]} 5. O-O {[%clk 1:31:45]} 5... Nbd7 {[%clk
1:32:03]} 6. a4 {[%clk 1:27:27]} 6... b4 {[%clk 1:30:43]} 7. a5 {[%clk 1:26:30]}
7... Ba6 {[%clk 1:30:48]} 8. Re1 {[%clk 1:23:36]} 8... Be7 {[%clk 1:24:16]} 9.
Nbd2 {[%clk 1:20:48]} 9... O-O {[%clk 1:24:01]} 10. e4 {[%clk 1:16:59]} 10... c6
{[%clk 1:23:24]} 11. e5 {[%clk 1:13:28]} 11... Ne8 {[%clk 1:23:04]} 12. h4
{[%clk 1:10:31]} 12... h6 {[%clk 1:13:39]} 13. Nf1 {[%clk 1:10:11]} 13... Rb8
{[%clk 1:12:18]} 14. N1h2 {[%clk 1:07:14]} 14... Rb5 {[%clk 1:00:00]} 15. Bf4
{[%clk 1:04:08]} 15... Rxa5 {[%clk 0:51:25]} 16. Qd2 {[%clk 1:04:30]} 16... Bb5
{[%clk 0:47:15]} 17. Rxa5 {[%clk 1:01:28]} 17... Qxa5 {[%clk 0:47:27]} 18. Bh3
{[%clk 0:58:12]} 18... Qd8 {[%clk 0:37:57]} 19. Kg2 {[%clk 0:42:40]} 19... a5
{[%clk 0:21:10]} 20. b3 {[%clk 0:39:09]} 20... Nb6 {[%clk 0:17:20]} 21. Bxh6
{[%clk 0:37:17]} 21... gxh6 {[%clk 0:14:15]} 22. Qxh6 {[%clk 0:37:42]} 22... Ng7
{[%clk 0:14:31]} 23. Ng5 {[%clk 0:37:44]} 23... Bxg5 {[%clk 0:12:29]} 24. hxg5
{[%clk 0:38:10]} 24... Re8 {[%clk 0:12:55]} 25. Ng4 {[%clk 0:37:49]} 25... Nf5
{[%clk 0:09:47]} 26. Qh5 {[%clk 0:36:13]} 26... Kf8 {[%clk 0:06:03]} 27. Nf6
{[%clk 0:30:55]} 27... Nxd4 {[%clk 0:04:56]} 28. g6 {[%clk 0:30:43]} 28... Ke7
{[%clk 0:04:04]} 29. Nxe8 {[%clk 0:29:57]} 29... fxg6 {[%clk 0:03:55]} 30. Qh4+
{[%clk 0:30:13]} 30... Kxe8 {[%clk 0:03:50]} 31. Qxd4 {[%clk 0:30:37]} 31... Kd7
{[%clk 0:02:33]} 32. Ra1 {[%clk 0:30:38]} 32... Nc8 {[%clk 0:02:31]} 33. Qg4
{[%clk 0:30:48]} 33... Qe8 {[%clk 0:01:58]} 34. Rxa5 {[%clk 0:31:12]} 34... Qf7
{[%clk 0:02:25]} 35. Qxb4 {[%clk 0:30:32]} 35... Kc7 {[%clk 0:02:10]} 36. c4
{[%clk 0:30:18]} 1-0

[Variant "Standard"]
[Site "Europe Echecs"]

[Event "Open Cappelle-la-Grande"]
[Date "2025.02.19"]
[White "Froeyman, Helmut"]
[Black "Bacrot, Alexandre"]
[WhiteElo "2274"]
[BlackElo "2423"]
[Round "7.7.13"]
[Result "0-1"]
[TimeControl "40/5400+30:1800+30"]

1. e4 {[%clk 1:30:58]} 1... d6 {[%clk 1:30:58]} 2. d4 {[%clk 1:31:22]} 2... Nf6
{[%clk 1:31:26]} 3. Nc3 {[%clk 1:31:45]} 3... g6 {[%clk 1:31:53]} 4. Nf3 {[%clk
1:32:00]} 4... Bg7 {[%clk 1:32:20]} 5. Be2 {[%clk 1:32:03]} 5... O-O {[%clk
1:32:45]} 6. O-O {[%clk 1:32:14]} 6... c5 {[%clk 1:33:13]} 7. d5 {[%clk
1:28:06]} 7... e6 {[%clk 1:32:29]} 8. h3 {[%clk 1:23:49]} 8... exd5 {[%clk
1:32:12]} 9. exd5 {[%clk 1:23:52]} 9... Re8 {[%clk 1:23:24]} 10. Re1 {[%clk
1:18:01]} 10... a6 {[%clk 1:17:00]} 11. a4 {[%clk 1:18:05]} 11... b6 {[%clk
1:13:51]} 12. Be3 {[%clk 1:11:39]} 12... Rxe3 {[%clk 1:13:20]} 13. fxe3 {[%clk
1:12:01]} 13... Nbd7 {[%clk 1:11:49]} 14. Qd2 {[%clk 1:02:41]} 14... Qe7 {[%clk
1:10:51]} 15. Rab1 {[%clk 0:56:47]} 15... Bb7 {[%clk 1:08:41]} 16. e4 {[%clk
0:51:27]} 16... Ne8 {[%clk 1:04:35]} 17. Nd1 {[%clk 0:50:03]} 17... Nc7 {[%clk
1:02:27]} 18. c3 {[%clk 0:47:36]} 18... Re8 {[%clk 0:52:36]} 19. Nf2 {[%clk
0:47:03]} 19... Ne5 {[%clk 0:52:47]} 20. Qf4 {[%clk 0:40:43]} 20... Nxf3+ {[%clk
0:50:41]} 21. Qxf3 {[%clk 0:40:55]} 21... a5 {[%clk 0:39:12]} 22. Bd3 {[%clk
0:37:45]} 22... h5 {[%clk 0:39:00]} 23. Rbd1 {[%clk 0:36:09]} 23... Qd7 {[%clk
0:37:31]} 24. Ra1 {[%clk 0:33:12]} 24... Re7 {[%clk 0:37:46]} 25. Bc4 {[%clk
0:31:12]} 25... Qe8 {[%clk 0:37:57]} 26. Nd3 {[%clk 0:28:00]} 26... Qd8 {[%clk
0:38:22]} 27. Qf2 {[%clk 0:24:13]} 27... Ne8 {[%clk 0:38:44]} 28. Rad1 {[%clk
0:22:54]} 28... Bc8 {[%clk 0:38:07]} 29. Bb5 {[%clk 0:20:24]} 29... Nc7 {[%clk
0:37:00]} 30. Bc4 {[%clk 0:15:02]} 30... Ne8 {[%clk 0:36:48]} 31. Bb5 {[%clk
0:15:15]} 31... Bd7 {[%clk 0:36:58]} 32. Bxd7 {[%clk 0:13:35]} 32... Qxd7 {[%clk
0:37:23]} 33. Qc2 {[%clk 0:10:33]} 33... c4 {[%clk 0:37:21]} 34. Nf2 {[%clk
0:10:10]} 34... Nc7 {[%clk 0:35:47]} 35. b3 {[%clk 0:09:54]} 35... Na6 {[%clk
0:34:59]} 36. bxc4 {[%clk 0:09:05]} 36... Nc5 {[%clk 0:35:28]} 37. Nd3 {[%clk
0:07:10]} 37... Nxe4 {[%clk 0:35:14]} 38. Rxe4 {[%clk 0:02:10]} 38... Rxe4
{[%clk 0:35:42]} 39. Nc5 {[%clk 0:02:31]} 39... bxc5 {[%clk 0:35:57]} 40. Qxe4
{[%clk 0:03:00]} 40... Qxa4 {[%clk 0:36:02]} 41. Rf1 {[%clk 0:23:37]} 41... Qd7
{[%clk 1:05:27]} 42. Re1 {[%clk 0:20:37]} 42... Be5 {[%clk 1:05:37]} 43. Qc2
{[%clk 0:17:53]} 43... Qd8 {[%clk 1:05:36]} 44. Qa4 {[%clk 0:17:28]} 44... Kg7
{[%clk 1:05:47]} 45. Rxe5 {[%clk 0:16:02]} 45... dxe5 {[%clk 1:06:10]} 46. Qc6
{[%clk 0:16:11]} 46... a4 {[%clk 0:50:51]} 47. Qxa4 {[%clk 0:11:41]} 47... e4
{[%clk 0:51:20]} 48. Qd1 {[%clk 0:10:45]} 48... Qd6 {[%clk 0:50:45]} 49. Qd2
{[%clk 0:09:46]} 49... f5 {[%clk 0:48:24]} 50. Qg5 {[%clk 0:04:30]} 50... f4
{[%clk 0:48:40]} 51. Kf2 {[%clk 0:03:04]} 51... Qf6 {[%clk 0:49:04]} 52. Qxf6+
{[%clk 0:03:25]} 52... Kxf6 {[%clk 0:49:30]} 53. g3 {[%clk 0:01:26]} 53... fxg3+
{[%clk 0:46:21]} 54. Kxg3 {[%clk 0:01:55]} 54... g5 {[%clk 0:46:40]} 55. Kf2
{[%clk 0:02:15]} 55... h4 {[%clk 0:43:32]} 56. Ke3 {[%clk 0:02:25]} 56... Ke5
{[%clk 0:44:00]} 57. d6 {[%clk 0:02:37]} 57... Kxd6 {[%clk 0:44:29]} 58. Kxe4
{[%clk 0:03:03]} 58... Ke6 {[%clk 0:44:54]} 59. Kf3 {[%clk 0:00:46]} 59... Kf5
{[%clk 0:45:18]} 60. Ke3 {[%clk 0:00:45]} 60... g4 {[%clk 0:45:42]} 61. hxg4+
{[%clk 0:01:12]} 61... Kxg4 {[%clk 0:46:07]} 62. Kf2 {[%clk 0:01:35]} 62... Kf4
{[%clk 0:46:34]} 63. Kg2 {[%clk 0:01:58]} 63... Ke4 {[%clk 0:47:00]} 64. Kh3
{[%clk 0:02:26]} 64... Kd3 {[%clk 0:47:27]} 65. Kxh4 {[%clk 0:02:52]} 65... Kxc4
{[%clk 0:47:54]} 0-1

[Variant "Standard"]
[Site "Europe Echecs"]

[Event "Open Cappelle-la-Grande"]
[Date "2025.02.19"]
[White "Terekhov, Andrey"]
[Black "Wirig, Anthony"]
[WhiteElo "2265"]
[BlackElo "2419"]
[Round "7.7.14"]
[Result "0-1"]
[TimeControl "40/5400+30:1800+30"]

1. d4 {[%clk 1:30:57]} 1... d5 {[%clk 1:30:58]} 2. Nf3 {[%clk 1:31:19]} 2... Nf6
{[%clk 1:31:05]} 3. c4 {[%clk 1:31:42]} 3... e6 {[%clk 1:31:24]} 4. g3 {[%clk
1:32:07]} 4... Be7 {[%clk 1:31:50]} 5. Bg2 {[%clk 1:32:33]} 5... O-O {[%clk
1:32:18]} 6. O-O {[%clk 1:32:51]} 6... Nbd7 {[%clk 1:32:45]} 7. Nc3 {[%clk
1:32:33]} 7... dxc4 {[%clk 1:29:09]} 8. e4 {[%clk 1:22:24]} 8... b5 {[%clk
1:28:31]} 9. Nxb5 {[%clk 1:13:23]} 9... Bb7 {[%clk 1:28:54]} 10. Ng5 {[%clk
1:00:42]} 10... h6 {[%clk 1:27:09]} 11. e5 {[%clk 0:57:30]} 11... Bxg2 {[%clk
1:26:46]} 12. Kxg2 {[%clk 0:52:38]} 12... hxg5 {[%clk 1:25:18]} 13. exf6 {[%clk
0:52:40]} 13... Nxf6 {[%clk 1:18:52]} 14. Nc3 {[%clk 0:51:39]} 14... Nd5 {[%clk
1:18:29]} 15. Ne4 {[%clk 0:51:17]} 15... f5 {[%clk 1:18:40]} 16. Nd2 {[%clk
0:49:18]} 16... Nb4 {[%clk 1:13:42]} 17. a3 {[%clk 0:44:27]} 17... Qd5+ {[%clk
1:05:20]} 18. f3 {[%clk 0:36:03]} 18... Nc6 {[%clk 1:02:42]} 19. Qe2 {[%clk
0:34:40]} 19... Nxd4 {[%clk 1:01:18]} 20. Qxc4 {[%clk 0:35:05]} 20... Bf6 {[%clk
1:00:33]} 21. Rb1 {[%clk 0:29:57]} 21... g4 {[%clk 0:45:59]} 22. Qxd5 {[%clk
0:23:47]} 22... exd5 {[%clk 0:45:56]} 23. fxg4 {[%clk 0:23:53]} 23... fxg4
{[%clk 0:46:18]} 24. b4 {[%clk 0:21:38]} 24... Rae8 {[%clk 0:46:37]} 25. Rf2
{[%clk 0:20:28]} 25... Nc2 {[%clk 0:41:01]} 26. Nb3 {[%clk 0:13:17]} 26... Ne1+
{[%clk 0:39:39]} 27. Kh1 {[%clk 0:12:50]} 27... Nd3 {[%clk 0:39:47]} 28. Rf1
{[%clk 0:12:44]} 28... Re2 {[%clk 0:34:10]} 29. Bf4 {[%clk 0:12:38]} 29... Rfe8
{[%clk 0:28:29]} 30. Nc1 {[%clk 0:11:53]} 30... Nxf4 {[%clk 0:23:54]} 31. gxf4
{[%clk 0:11:56]} 31... Rc2 {[%clk 0:23:11]} 32. Rb3 {[%clk 0:08:15]} 32... Bc3
{[%clk 0:19:38]} 33. Nd3 {[%clk 0:08:14]} 33... Ree2 {[%clk 0:15:24]} 34. Rf2
{[%clk 0:07:35]} 34... d4 {[%clk 0:14:22]} 35. Kg1 {[%clk 0:04:32]} 35... Rxf2
{[%clk 0:14:21]} 36. Nxf2 {[%clk 0:05:00]} 36... Kf7 {[%clk 0:14:40]} 37. Kf1
{[%clk 0:01:16]} 37... Ke6 {[%clk 0:14:49]} 38. Nxg4 {[%clk 0:01:33]} 38... Kf5
{[%clk 0:14:42]} 39. Nf2 {[%clk 0:01:06]} 39... Kxf4 {[%clk 0:14:42]} 40. Rb1
{[%clk 0:00:38]} 40... Kf3 {[%clk 0:14:48]} 41. Nd3 {[%clk 0:29:09]} 41... Rxh2
{[%clk 0:42:11]} 42. Ne5+ {[%clk 0:29:27]} 42... Ke4 {[%clk 0:42:25]} 0-1

[Variant "Standard"]
[Site "Europe Echecs"]

[Event "Open Cappelle-la-Grande"]
[Date "2025.02.19"]
[White "Ringuet, Noe"]
[Black "Kanov, Nikola"]
[WhiteElo "2239"]
[BlackElo "2405"]
[Round "7.7.15"]
[Result "0-1"]
[TimeControl "40/5400+30:1800+30"]

1. d4 {[%clk 1:30:50]} 1... Nf6 {[%clk 1:30:48]} 2. Bf4 {[%clk 1:30:50]} 2... g6
{[%clk 1:30:34]} 3. Nc3 {[%clk 1:30:37]} 3... Bg7 {[%clk 1:26:35]} 4. e4 {[%clk
1:30:42]} 4... d6 {[%clk 1:25:48]} 5. Qd2 {[%clk 1:30:17]} 5... c6 {[%clk
1:24:50]} 6. O-O-O {[%clk 1:23:47]} 6... b5 {[%clk 1:21:23]} 7. f3 {[%clk
1:19:36]} 7... b4 {[%clk 1:14:25]} 8. Nce2 {[%clk 1:18:05]} 8... a5 {[%clk
1:13:27]} 9. Bh6 {[%clk 1:15:28]} 9... Bxh6 {[%clk 1:10:12]} 10. Qxh6 {[%clk
1:15:50]} 10... Qc7 {[%clk 1:07:25]} 11. g4 {[%clk 1:06:25]} 11... a4 {[%clk
1:05:04]} 12. Kb1 {[%clk 1:04:09]} 12... a3 {[%clk 1:03:10]} 13. b3 {[%clk
1:02:39]} 13... c5 {[%clk 1:01:50]} 14. h4 {[%clk 0:50:00]} 14... Ba6 {[%clk
0:53:06]} 15. h5 {[%clk 0:44:58]} 15... Rg8 {[%clk 0:33:31]} 16. hxg6 {[%clk
0:35:09]} 16... hxg6 {[%clk 0:33:41]} 17. Qe3 {[%clk 0:32:29]} 17... g5 {[%clk
0:29:12]} 18. e5 {[%clk 0:19:48]} 18... Nd5 {[%clk 0:27:56]} 19. Qe4 {[%clk
0:19:52]} 19... Bb7 {[%clk 0:27:12]} 20. exd6 {[%clk 0:18:10]} 20... Qxd6 {[%clk
0:27:24]} 21. Qh7 {[%clk 0:16:20]} 21... Nf6 {[%clk 0:25:06]} 22. Qf5 {[%clk
0:13:48]} 22... Nbd7 {[%clk 0:24:30]} 23. Rh6 {[%clk 0:12:32]} 23... e6 {[%clk
0:24:24]} 24. Qd3 {[%clk 0:12:57]} 24... Nd5 {[%clk 0:23:37]} 25. c4 {[%clk
0:09:15]} 25... bxc3 {[%clk 0:23:36]} 26. Nxc3 {[%clk 0:09:41]} 26... Ba6 {[%clk
0:22:29]} 27. Qd2 {[%clk 0:09:58]} 27... Nxc3+ {[%clk 0:18:54]} 28. Qxc3 {[%clk
0:10:24]} 28... Bxf1 {[%clk 0:19:10]} 29. Rxf1 {[%clk 0:10:31]} 29... cxd4
{[%clk 0:18:51]} 30. Rd1 {[%clk 0:08:23]} 30... dxc3 {[%clk 0:18:27]} 31. Rxd6
{[%clk 0:08:49]} 31... Ke7 {[%clk 0:18:03]} 32. Rd3 {[%clk 0:09:08]} 32... Rgc8
{[%clk 0:17:51]} 33. Kc2 {[%clk 0:09:24]} 33... Nb6 {[%clk 0:16:49]} 34. Ne2
{[%clk 0:01:28]} 34... Nd5 {[%clk 0:17:08]} 35. Rd4 {[%clk 0:01:53]} 35... Rd8
{[%clk 0:16:02]} 36. Rh5 {[%clk 0:00:38]} 36... Rac8 {[%clk 0:15:39]} 37. Rxg5
{[%clk 0:00:34]} 37... Nb4+ {[%clk 0:12:40]} 38. Rxb4 {[%clk 0:01:00]} 38...
Rd2+ {[%clk 0:13:06]} 39. Kc1 {[%clk 0:01:02]} 39... Rxe2 {[%clk 0:13:31]} 40.
Ra4 {[%clk 0:00:34]} 40... c2 {[%clk 0:10:51]} 41. Rc4 {[%clk 0:30:11]} 41...
Rd8 {[%clk 0:41:09]} 42. Rc7+ {[%clk 0:29:58]} 42... Kf6 {[%clk 0:41:24]} 0-1

[Variant "Standard"]
[Site "Europe Echecs"]

[Event "Open Cappelle-la-Grande"]
[Date "2025.02.19"]
[White "Dobrowolski, Victor"]
[Black "Travadon, Loic"]
[WhiteElo "1910"]
[BlackElo "2401"]
[Round "7.7.16"]
[Result "0-1"]
[TimeControl "40/5400+30:1800+30"]

1. d4 {[%clk 1:30:57]} 1... Nf6 {[%clk 1:30:50]} 2. Nc3 {[%clk 1:31:17]} 2... d5
{[%clk 1:22:11]} 3. Bg5 {[%clk 1:31:14]} 3... e6 {[%clk 1:20:43]} 4. e4 {[%clk
1:27:08]} 4... Bb4 {[%clk 1:17:30]} 5. e5 {[%clk 1:24:59]} 5... h6 {[%clk
1:17:55]} 6. Bxf6 {[%clk 1:25:25]} 6... gxf6 {[%clk 1:18:11]} 7. Nf3 {[%clk
1:25:01]} 7... Nd7 {[%clk 1:14:32]} 8. exf6 {[%clk 1:22:11]} 8... Qxf6 {[%clk
1:13:00]} 9. a3 {[%clk 1:20:15]} 9... Be7 {[%clk 1:13:02]} 10. Qd2 {[%clk
1:16:56]} 10... c6 {[%clk 1:12:58]} 11. Ne2 {[%clk 1:09:06]} 11... Bd6 {[%clk
1:09:20]} 12. Ng3 {[%clk 1:05:24]} 12... h5 {[%clk 1:06:57]} 13. Qg5 {[%clk
1:02:54]} 13... Qxg5 {[%clk 1:06:55]} 14. Nxg5 {[%clk 1:03:22]} 14... h4 {[%clk
1:07:12]} 15. Ne2 {[%clk 1:03:34]} 15... Ke7 {[%clk 1:07:37]} 16. Nf3 {[%clk
0:59:19]} 16... f6 {[%clk 1:07:51]} 17. Nd2 {[%clk 0:58:26]} 17... b5 {[%clk
1:07:01]} 18. Nb3 {[%clk 0:52:57]} 18... a5 {[%clk 1:04:07]} 19. Nbc1 {[%clk
0:49:58]} 19... e5 {[%clk 1:04:17]} 20. Nd3 {[%clk 0:49:39]} 20... Nf8 {[%clk
1:04:39]} 21. Kd2 {[%clk 0:47:17]} 21... Ne6 {[%clk 1:04:56]} 22. c3 {[%clk
0:46:49]} 22... e4 {[%clk 1:04:23]} 23. Ne1 {[%clk 0:47:04]} 23... f5 {[%clk
1:03:33]} 24. Nc2 {[%clk 0:43:31]} 24... f4 {[%clk 1:02:38]} 25. b3 {[%clk
0:42:16]} 25... a4 {[%clk 1:02:10]} 26. Nc1 {[%clk 0:40:55]} 26... Bd7 {[%clk
1:00:03]} 27. Nb4 {[%clk 0:38:08]} 27... h3 {[%clk 0:59:29]} 28. g3 {[%clk
0:38:01]} 28... Raf8 {[%clk 0:58:19]} 29. bxa4 {[%clk 0:35:30]} 29... bxa4
{[%clk 0:58:00]} 30. Ne2 {[%clk 0:35:24]} 30... fxg3 {[%clk 0:57:56]} 31. fxg3
{[%clk 0:33:54]} 31... Ng5 {[%clk 0:58:02]} 32. c4 {[%clk 0:31:37]} 32... Rf3
{[%clk 0:56:10]} 33. Nc3 {[%clk 0:29:54]} 33... Rf2+ {[%clk 0:55:29]} 34. Ke3
{[%clk 0:27:52]} 34... Rhf8 {[%clk 0:54:29]} 35. Be2 {[%clk 0:27:46]} 35... dxc4
{[%clk 0:53:13]} 36. Raf1 {[%clk 0:27:04]} 36... Rxf1 {[%clk 0:51:55]} 37. Rxf1
{[%clk 0:27:15]} 37... Rxf1 {[%clk 0:52:49]} 38. Bxf1 {[%clk 0:28:02]} 38... Nf3
{[%clk 0:52:53]} 39. Bxh3 {[%clk 0:25:09]} 39... Bxb4 {[%clk 0:49:48]} 40. Bxd7
{[%clk 0:23:51]} 40... Bxc3 {[%clk 0:50:11]} 41. Bxc6 {[%clk 0:24:09]} 41...
Nxd4 {[%clk 0:50:16]} 42. Bxa4 {[%clk 0:24:09]} 42... Nb3 {[%clk 0:49:25]} 43.
Bb5 {[%clk 0:15:23]} 43... Nd2 {[%clk 0:49:18]} 44. g4 {[%clk 0:09:44]} 44...
Ba5 {[%clk 0:48:10]} 45. h4 {[%clk 0:05:39]} 45... c3 {[%clk 0:48:33]} 46. Ba4
{[%clk 0:05:40]} 46... Bb6+ {[%clk 0:49:01]} 47. Ke2 {[%clk 0:04:45]} 47... Nf3
{[%clk 0:47:19]} 48. h5 {[%clk 0:01:44]} 48... Nd4+ {[%clk 0:47:45]} 49. Kd1
{[%clk 0:01:10]} 49... e3 {[%clk 0:48:13]} 50. h6 {[%clk 0:01:02]} 50... Bc7
{[%clk 0:48:21]} 51. Bb5 {[%clk 0:27:11]} 51... c2+ {[%clk 1:13:35]} 52. Kc1
{[%clk 0:27:30]} 52... Ba5 {[%clk 1:13:58]} 0-1

[Variant "Standard"]
[Site "Europe Echecs"]

[Event "Open Cappelle-la-Grande"]
[Date "2025.02.19"]
[White "Carnicelli, Valerio"]
[Black "Pinson, Luc"]
[WhiteElo "2378"]
[BlackElo "1692"]
[Round "7.7.17"]
[Result "1-0"]
[TimeControl "40/5400+30:1800+30"]

1. e4 {[%clk 1:30:56]} 1... e5 {[%clk 1:30:40]} 2. Nf3 {[%clk 1:31:22]} 2... Nc6
{[%clk 1:30:51]} 3. Bb5 {[%clk 1:31:45]} 3... d6 {[%clk 1:30:54]} 4. c3 {[%clk
1:31:42]} 4... Bd7 {[%clk 1:30:45]} 5. O-O {[%clk 1:31:55]} 5... Nf6 {[%clk
1:27:57]} 6. Re1 {[%clk 1:31:59]} 6... Be7 {[%clk 1:27:58]} 7. d4 {[%clk
1:31:13]} 7... O-O {[%clk 1:28:06]} 8. h3 {[%clk 1:30:03]} 8... Qc8 {[%clk
1:26:32]} 9. Nbd2 {[%clk 1:23:55]} 9... a6 {[%clk 1:23:56]} 10. Bxc6 {[%clk
1:21:54]} 10... bxc6 {[%clk 1:23:45]} 11. dxe5 {[%clk 1:21:45]} 11... Nh5 {[%clk
1:23:48]} 12. Nf1 {[%clk 1:20:12]} 12... dxe5 {[%clk 1:20:39]} 13. Nxe5 {[%clk
1:19:31]} 13... Nf6 {[%clk 1:13:43]} 14. Nxd7 {[%clk 1:19:08]} 14... Nxd7 {[%clk
1:14:03]} 15. Ng3 {[%clk 1:19:00]} 15... Ne5 {[%clk 1:12:31]} 16. Nf5 {[%clk
1:18:32]} 16... Qe6 {[%clk 1:10:52]} 17. f4 {[%clk 1:16:46]} 17... Bc5+ {[%clk
1:08:31]} 18. Nd4 {[%clk 1:15:11]} 18... Nd7 {[%clk 1:03:30]} 19. Kh1 {[%clk
1:13:14]} 19... Bxd4 {[%clk 0:58:37]} 20. f5 {[%clk 1:11:42]} 20... Qd6 {[%clk
0:57:20]} 21. cxd4 {[%clk 1:09:47]} 21... Rfd8 {[%clk 0:56:23]} 22. e5 {[%clk
1:08:07]} 22... Qd5 {[%clk 0:54:49]} 23. Qg4 {[%clk 1:06:45]} 23... Nf8 {[%clk
0:54:15]} 24. Bg5 {[%clk 1:05:30]} 24... Re8 {[%clk 0:52:36]} 25. Bf6 {[%clk
1:04:42]} 25... Ng6 {[%clk 0:48:07]} 26. fxg6 {[%clk 1:04:45]} 26... gxf6 {[%clk
0:47:17]} 27. gxh7+ {[%clk 1:04:54]} 27... Kh8 {[%clk 0:45:46]} 28. exf6 {[%clk
1:04:37]} 1-0

[Variant "Standard"]
[Site "Europe Echecs"]

[Event "Open Cappelle-la-Grande"]
[Date "2025.02.20"]
[White "Iniyan, Pa"]
[Black "Tahay, Alexis"]
[WhiteElo "2523"]
[BlackElo "2386"]
[Round "8.8.1"]
[Result "1-0"]
[TimeControl "40/5400+30:1800+30"]

1. d4 {[%clk 1:29:41]} 1... Nf6 {[%clk 1:29:47]} 2. c4 {[%clk 1:30:03]} 2... e6
{[%clk 1:30:12]} 3. Nc3 {[%clk 1:30:24]} 3... Bb4 {[%clk 1:30:27]} 4. e3 {[%clk
1:30:45]} 4... O-O {[%clk 1:30:38]} 5. Bd3 {[%clk 1:31:09]} 5... d5 {[%clk
1:30:11]} 6. cxd5 {[%clk 1:30:13]} 6... exd5 {[%clk 1:30:23]} 7. a3 {[%clk
1:30:37]} 7... Bd6 {[%clk 1:30:47]} 8. Nge2 {[%clk 1:30:59]} 8... Re8 {[%clk
1:29:52]} 9. Qc2 {[%clk 1:31:21]} 9... c6 {[%clk 1:26:46]} 10. Bd2 {[%clk
1:31:41]} 10... Nbd7 {[%clk 1:24:14]} 11. f3 {[%clk 1:23:01]} 11... c5 {[%clk
1:17:29]} 12. O-O {[%clk 1:23:04]} 12... a6 {[%clk 1:11:26]} 13. Kh1 {[%clk
1:09:30]} 13... g6 {[%clk 1:06:17]} 14. Qb1 {[%clk 1:03:20]} 14... Nh5 {[%clk
0:50:43]} 15. Qe1 {[%clk 0:58:59]} 15... Ndf6 {[%clk 0:48:48]} 16. Qh4 {[%clk
0:57:35]} 16... Ng7 {[%clk 0:45:24]} 17. g4 {[%clk 0:57:20]} 17... Be7 {[%clk
0:39:13]} 18. Qf2 {[%clk 0:57:39]} 18... h5 {[%clk 0:36:53]} 19. g5 {[%clk
0:52:22]} 19... Nh7 {[%clk 0:36:59]} 20. h4 {[%clk 0:52:45]} 20... cxd4 {[%clk
0:26:27]} 21. Nxd4 {[%clk 0:51:16]} 21... Bc5 {[%clk 0:24:55]} 22. Nce2 {[%clk
0:50:44]} 22... Nf8 {[%clk 0:23:34]} 23. Rad1 {[%clk 0:45:51]} 23... Nfe6 {[%clk
0:18:33]} 24. Bc3 {[%clk 0:44:40]} 24... Nxd4 {[%clk 0:18:17]} 25. Nxd4 {[%clk
0:43:18]} 25... Qd7 {[%clk 0:16:12]} 26. Rfe1 {[%clk 0:42:15]} 26... Qh3+ {[%clk
0:13:23]} 27. Qh2 {[%clk 0:42:24]} 27... Bd6 {[%clk 0:12:41]} 28. Qxh3 {[%clk
0:40:08]} 28... Bxh3 {[%clk 0:13:09]} 29. Re2 {[%clk 0:39:35]} 29... Re7 {[%clk
0:12:15]} 30. Bb4 {[%clk 0:39:23]} 30... Bxb4 {[%clk 0:12:19]} 31. axb4 {[%clk
0:39:46]} 31... Rae8 {[%clk 0:11:48]} 32. Rde1 {[%clk 0:40:04]} 32... Bf5 {[%clk
0:11:33]} 33. Bxf5 {[%clk 0:36:04]} 33... Nxf5 {[%clk 0:11:59]} 34. Nxf5 {[%clk
0:36:28]} 34... gxf5 {[%clk 0:12:26]} 35. Kg2 {[%clk 0:36:50]} 35... Kg7 {[%clk
0:11:11]} 36. Kf2 {[%clk 0:35:46]} 36... f6 {[%clk 0:08:37]} 37. f4 {[%clk
0:35:22]} 37... fxg5 {[%clk 0:06:43]} 38. hxg5 {[%clk 0:35:46]} 38... h4 {[%clk
0:04:03]} 39. Rd1 {[%clk 0:35:38]} 39... Rd8 {[%clk 0:03:59]} 40. Red2 {[%clk
0:35:05]} 40... Red7 {[%clk 0:04:21]} 41. Kf3 {[%clk 0:35:06]} 41... Kg6 {[%clk
0:03:36]} 42. Rh1 {[%clk 0:35:25]} 42... Rh8 {[%clk 0:02:45]} 43. Rdh2 {[%clk
0:35:34]} 43... Rdh7 {[%clk 0:02:38]} 44. Ke2 {[%clk 0:33:56]} 44... d4 {[%clk
0:18:34]} 45. exd4 {[%clk 1:04:05]} 45... Rd8 {[%clk 0:18:49]} 46. Kd3 {[%clk
1:01:10]} 46... Rhd7 {[%clk 0:12:59]} 47. Rxh4 {[%clk 1:01:29]} 47... Rxd4+
{[%clk 0:13:27]} 48. Kc3 {[%clk 1:01:40]} 48... Rd3+ {[%clk 0:13:37]} 49. Kc2
{[%clk 1:02:01]} 49... Rd2+ {[%clk 0:13:53]} 50. Kc1 {[%clk 0:57:23]} 50... R2d7
{[%clk 0:12:48]} 51. Rh6+ {[%clk 0:47:47]} 51... Kg7 {[%clk 0:13:14]} 52. Rh7+
{[%clk 0:48:09]} 52... Kg8 {[%clk 0:13:13]} 53. Rh8+ {[%clk 0:48:30]} 53... Kg7
{[%clk 0:12:43]} 54. R1h7+ {[%clk 0:48:52]} 54... Kg6 {[%clk 0:13:12]} 55. Rh6+
{[%clk 0:49:13]} 55... Kg7 {[%clk 0:13:19]} 56. R8h7+ {[%clk 0:49:10]} 56... Kg8
{[%clk 0:13:46]} 57. Rxd7 {[%clk 0:49:34]} 57... Rxd7 {[%clk 0:14:09]} 58. Rf6
{[%clk 0:50:00]} 58... Rd4 {[%clk 0:13:49]} 59. Rxf5 {[%clk 0:49:59]} 59... Rxb4
{[%clk 0:13:31]} 60. Kc2 {[%clk 0:50:20]} 60... b6 {[%clk 0:11:25]} 61. Rf6
{[%clk 0:48:56]} 61... Kg7 {[%clk 0:10:25]} 62. f5 {[%clk 0:42:54]} 62... Rf4
{[%clk 0:10:26]} 63. Kd3 {[%clk 0:42:44]} 63... a5 {[%clk 0:10:04]} 64. Rg6+
{[%clk 0:42:22]} 64... Kf7 {[%clk 0:10:31]} 65. Rxb6 {[%clk 0:42:32]} 65... Rxf5
{[%clk 0:10:21]} 66. Rf6+ {[%clk 0:42:57]} 66... Rxf6 {[%clk 0:10:49]} 67. gxf6
{[%clk 0:43:20]} 67... a4 {[%clk 0:11:07]} 68. Kc4 {[%clk 0:43:46]} 68... a3
{[%clk 0:11:34]} 69. bxa3 {[%clk 0:44:11]} 69... Kxf6 {[%clk 0:12:02]} 70. Kd5
{[%clk 0:44:36]} 70... Ke7 {[%clk 0:12:29]} 71. Kc6 {[%clk 0:45:02]} 71... Kd8
{[%clk 0:12:56]} 72. Kb7 {[%clk 0:45:28]} 1-0

[Variant "Standard"]
[Site "Europe Echecs"]